Cogmind - Beta 17 @@@ ROGUE MODE // 2026.07.10 @ 11:32:08 Player: OBLIQUE Result: Self-destructed Performance ------------- Evolutions (7) 3500 Regions Visited (14) 2800 Robots Destroyed (59) 295 Value Destroyed (1783) 1783 Prototype IDs (44) 880 Alien Tech Used (2) 400 Bonus (350) 350 TOTAL SCORE: 10008 Bonus ------- Follower Combat Kills 50 Aligned with FarCom 300 Cogmind --------- Core Integrity 1300/1300 Matter 300/300 Energy 100/100 System Corruption 0% Temperature Cool (0) Movement Core (50) Location -3/Research Parts ------- > --- POWER (2) -------- (None) > --- PROPULSION (5) --- (None) > --- UTILITY (12) ----- (None) > --- WEAPON (2) ------- (None) > --- INVENTORY (5) ---- Neutrino Core Advanced Energy Well Advanced Force Field Molecular Deconstructor Peak State ------------ > --- POWER ------------ Fusion Reactor > --- PROPULSION ------- Gravmag Array Cooled Gravmag System Cooled Gravmag System Cooled Gravmag System > --- UTILITY ---------- Medium Storage Unit Improved Matter Compressor Structural Scanner Machine Analyzer Advanced Sensor Array Advanced Signal Interpreter Launcher Guidance Computer Experimental Power Shielding Hacking Suite System Shield Advanced System Shield > --- WEAPON ----------- Mace Makeshift Spear > --- INVENTORY -------- Neutrino Core Gyrokinetic Inverter Launcher Guidance Computer Improved Medium Armor Plating Advanced Force Field Transdimensional Reconstructor Hypervelocity Gauss Cannon Proton Missile Launcher Molecular Deconstructor [Rating: 95] Favorites ----------- Power Light Deuterium Engine Engine Light Deuterium Engine Power Core Micro Nuclear Core Reactor Fusion Reactor Propulsion Combat Airjet Wheel Compact Wheel Hover Unit Combat Airjet Utility Launcher Guidance Computer Device Structural Scanner Storage Medium Storage Unit Processor Launcher Guidance Computer Hackware System Shield Protection Improved Light Armor Plating Weapon Mini Grenade Launcher Energy Gun EM Pulse Gun Energy Cannon Light EM Pulse Cannon Ballistic Gun Assault Rifle Launcher Mini Grenade Launcher Special Weapon Molecular Deconstructor Impact Weapon Power Maul Piercing Weapon Makeshift Spear Build | -11 -10 -10 -10 -9 -8 -7 -6 -5 -4 -4 -4 -4 -3 -3 ------- Run | Yrd Mat Min Exi Min Mat Fac Fac Fac Fac Upp Upp Zhi Pro Res Slots Evolved 14 | . . . . . 4 2 2 2 2 . . . . 2 Power 1 | . . . . . . . . . . . . . . 1 Propulsion 3 | . . . . . . 1 1 1 . . . . . . Utility 10 | . . . . . 4 1 1 1 2 . . . . 1 Weapon . | . . . . . . . . . . . . . . . Parts Attached 73 | 6 2 12 1 . 7 6 10 8 1 8 3 9 . . Power 10 | 1 . 1 . . 1 1 2 2 . . . 2 . . Engine 5 | 1 . 1 . . 1 1 . 1 . . . . . . Core 4 | . . . . . . . 2 1 . . . 1 . . Reactor 1 | . . . . . . . . . . . . 1 . . Propulsion 16 | 2 . 4 . . . 1 2 2 . 1 . 4 . . Treads . | . . . . . . . . . . . . . . . Leg . | . . . . . . . . . . . . . . . Wheel 4 | 2 . 2 . . . . . . . . . . . . Hover 12 | . . 2 . . . 1 2 2 . 1 . 4 . . Flight . | . . . . . . . . . . . . . . . Utility 33 | 1 1 3 1 . 5 4 5 2 1 4 3 3 . . Device 10 | . 1 1 . . 1 2 2 1 . 1 1 . . . Storage 4 | 1 . . 1 . . . 1 . . . . 1 . . Processor 5 | . . . . . 2 1 . . 1 1 . . . . Hackware 7 | . . . . . . . 1 1 . 2 2 1 . . Protection 7 | . . 2 . . 2 1 1 . . . . 1 . . Artifact . | . . . . . . . . . . . . . . . Weapon 14 | 2 1 4 . . 1 . 1 2 . 3 . . . . Energy Gun 1 | 1 . . . . . . . . . . . . . . Energy Cannon 3 | . 1 2 . . . . . . . . . . . . Ballistic Gun 1 | 1 . . . . . . . . . . . . . . Ballistic Cannon . | . . . . . . . . . . . . . . . Launcher 5 | . . 2 . . . . 1 2 . . . . . . Special Weapon 1 | . . . . . . . . . . 1 . . . . Impact Weapon 2 | . . . . . 1 . . . . 1 . . . . Slashing Weapon . | . . . . . . . . . . . . . . . Piercing Weapon 1 | . . . . . . . . . . 1 . . . . Special Melee Weapon . | . . . . . . . . . . . . . . . Unidentified Prototypes 8 | . . . . . . . 1 . . 1 . 5 1 . Parts Lost 31 | . . 10 . . . 1 1 10 1 . . 5 3 . Power 3 | . . 1 . . . . . 1 . . . . 1 . Propulsion 6 | . . 2 . . . . . 1 . . . 3 . . Utility 10 | . . 2 . . . 1 . 4 1 . . . 2 . Weapon 12 | . . 5 . . . . 1 4 . . . 2 . . Highest Loss Streak 7 | . . 6 . . . 1 1 7 1 . . 5 3 . To Critical Strikes . | . . . . . . . . . . . . . . . Average Backups 8 | . 5 7 8 9 9 9 9 9 7 9 8 9 8 4 Power . | . . 1 1 1 1 1 . . . . 1 1 1 1 Propulsion 1 | . 1 . 1 1 3 3 2 2 3 2 1 . . . Utility 3 | . 2 3 3 5 1 2 3 3 3 4 4 3 3 2 Weapon 2 | . 1 2 2 2 3 3 3 2 1 1 2 3 2 1 Tool/Special . | . . . . . . . . . . . . . . . Unused Backups 20 | . 3 2 1 . 4 . 1 1 . . 2 1 3 2 Power 2 | . . 1 1 . . . . . . . . . . . Propulsion 3 | . 2 1 . . . . . . . . . . . . Utility 9 | . . . . . 1 . 1 1 . . 2 1 1 2 Weapon 5 | . . . . . 3 . . . . . . . 2 . Tool/Special 1 | . 1 . . . . . . . . . . . . . Average Slot Usage (%) 88 | . 99 84 100 100 96 99 94 80 36 64 92 80 72 . Engine 5 | . 14 12 14 14 9 7 2 2 . . . . . . Core 1 | . . . . . . . 3 2 5 5 5 . . . Wheel 2 | . 28 10 . . . . . . . . . . . . Hover 18 | . . 9 28 28 18 23 23 21 10 15 21 14 10 . Device 8 | . 13 6 . . 7 14 9 9 5 10 14 10 10 . Storage 9 | . 14 14 14 14 9 7 7 11 5 5 5 9 10 . Processor 10 | . . . . . 17 15 13 11 10 13 15 15 15 . Hackware 3 | . . . . . . . 2 . . 8 20 16 14 . Protection 9 | . . 5 14 14 16 15 16 7 . . . 4 4 . Ballistic Gun 1 | . 14 3 . . . . . . . . . . . . Launcher 9 | . . 10 28 28 11 15 13 9 . . . . . . Impact Weapon 1 | . . . . . 6 . . . . 1 5 2 . . Peak Build Rating 95 | 6 9 22 23 23 34 43 56 75 35 71 71 95 87 4 Average Rating 44 | 4 7 12 22 23 32 41 49 65 33 54 70 76 70 4 On Entrance 32 | . 6 9 22 23 23 32 39 56 33 35 61 71 71 4 Avg Prop Armor Cover (%) 4 | . . . . . . . . 4 . . . . . . Naked Turns 14 | . . . . . . . . . . . . . 7 7 Heaviest Build 50 | 14 17 17 20 20 26 31 38 50 16 21 22 33 29 . Greatest Support 54 | 26 26 26 24 24 24 31 39 52 32 46 46 54 22 3 Greatest Overweight (x) 4 | . . 4 . . 1 . . . . . . 2 1 . Average Overweight (x) . | . . . . . . . . . . . . . . . Largest Inventory Capacity 10 | 8 8 8 10 10 10 10 10 10 10 10 10 10 10 5 Average Capacity 9 | 6 8 8 8 10 10 10 10 10 10 10 10 10 9 5 Most Carried 10 | . 8 8 8 10 10 10 10 10 8 10 10 10 10 5 Average Carried 9 | . 5 7 7 9 9 9 9 9 7 9 9 9 9 5 Final Capacity 10 | 8 8 8 10 10 10 10 10 10 10 10 10 10 5 5 Final Carried 10 | . 8 8 8 10 10 10 10 7 8 10 10 10 5 5 Class Distribution -------------------- 51% | Scavenger-Mutant 16% | Mutant 11% | Hacker-Mutant 10% | Hacker-Scout 9% | Scavenger-Scout Dominant Class ---------------- Mutant | -10/Materials Mutant | -10/Mines Scavenger-Mutant | -10/Exiles Scavenger-Mutant | -9/Mines Scavenger-Mutant | -8/Materials Scavenger-Mutant | -7/Factory Scavenger-Mutant | -6/Factory Scavenger-Mutant | -5/Factory Mutant | -4/Factory Hacker-Scout | -4/Upper Caves Hacker-Scout | -4/Upper Caves Hacker-Mutant | -4/Zhirov Hacker-Mutant | -3/Proximity Caves Hacker-Mutant | -3/Research Resources | -11 -10 -10 -10 -9 -8 -7 -6 -5 -4 -4 -4 -4 -3 -3 ----------- Run | Yrd Mat Min Exi Min Mat Fac Fac Fac Fac Upp Upp Zhi Pro Res Matter Collected 2062 | 230 113 129 . 50 78 15 461 351 . 311 62 236 26 . Remotely . | . . . . . . . . . . . . . . . Salvage Created 2426 | . 407 46 . 74 144 30 575 527 . 180 78 339 26 . Parts 100 | . 21 . . 5 14 2 37 19 . . . 2 . . Haulers Intercepted 1 | . 1 . . . . . . . . . . . . . Recyclers Shooed 3 | . 2 . . . . . . 1 . . . . . . Parts Field Recycled . | . . . . . . . . . . . . . . . Retrieved Matter . | . . . . . . . . . . . . . . . Parts Self-Destructed 2 | . . . . . . . . . . . . 2 . . Prevented . | . . . . . . . . . . . . . . . Parts Restored . | . . . . . . . . . . . . . . . Kills | -11 -10 -10 -10 -9 -8 -7 -6 -5 -4 -4 -4 -4 -3 -3 ------- Run | Yrd Mat Min Exi Min Mat Fac Fac Fac Fac Upp Upp Zhi Pro Res Combat Hostiles Destroyed 32 | . 3 1 . 3 3 4 9 7 . . 1 . 1 . Melee 1 | . . . . . . . . . . . 1 . . . Guns 2 | . 2 . . . . . . . . . . . . . Cannons 2 | . 1 1 . . . . . . . . . . . . AOE 26 | . . . . 3 3 4 9 7 . . . . . . Classes Destroyed 11 | . 4 . . . 1 . 4 1 . . . . 1 . Worker 4 | . . . . . . . 1 3 . . . . . . Builder 4 | . . . . . . . 2 2 . . . . . . Tunneler 1 | . . . . . . . . 1 . . . . . . Hauler 1 | . 1 . . . . . . . . . . . . . Recycler 8 | . 2 . . . 1 . 2 3 . . . . . . Operator 1 | . . . . . . . 1 . . . . . . . Watcher 8 | . 2 . . . 3 . 3 . . . . . . . Swarmer 10 | . . . . . 3 4 3 . . . . . . . Grunt 14 | . 3 . . 3 . . 5 2 . . 1 . . . Sentry 1 | . . . . . . . . . . . . . 1 . Programmer 6 | . . . . . . . 1 5 . . . . . . Packrat 2 | . . . . . . . . . . 2 . . . . Best Kill Streak 9 | . 3 1 . 3 3 4 9 9 . . 1 . 1 . Combat Bots Only 6 | . 2 1 . 3 3 4 6 4 . . 1 . 1 . Max Kills in Single Turn 3 | . 1 1 . 2 3 3 2 2 . 1 1 . 1 . Gunslinging . | . . . . . . . . . . . . . . . Exploded 3 | . . . . 2 3 3 2 1 . . . . . . Melee 1 | . . . . . . . . . . . 1 . . . Uniques/NPCs Destroyed 1 | . . 1 . . . . . . . . . . . . YI-UF0 (-10/Mines) Combat | -11 -10 -10 -10 -9 -8 -7 -6 -5 -4 -4 -4 -4 -3 -3 -------- Run | Yrd Mat Min Exi Min Mat Fac Fac Fac Fac Upp Upp Zhi Pro Res Hostile Shots Fired 240 | . 8 34 . 9 3 4 44 99 . . 9 . 30 . Missed 100 | . 2 10 . 2 . 1 26 44 . . 5 . 10 . Hits 140 | . 6 24 . 7 3 3 18 55 . . 4 . 20 . Melee 2 | . . . . . . . . 2 . . . . . . Projectile 138 | . 6 24 . 7 3 3 18 53 . . 4 . 20 . AOE 31 | . . 25 . . . . . 2 . . . . 4 . Critical Strikes 5 | . . . . . . . . 3 . . 1 . 1 . Damage Taken 4543 | . 88 820 . 84 29 121 481 1303 27 . 69 965 556 . Core 1358 | . 12 135 . 34 6 12 96 308 . . . 458 297 . Absorbed by Shields . | . . . . . . . . . . . . . . . Redirected to Shielding 266 | . . . . . . . 57 43 . . . 125 41 . Ignored by Resistances 28 | . . . . . . 28 . . . . . . . . Core Remaining (%) 72 | 100 . . . 27 98 98 88 69 . . . . 29 . Volleys Fired 118 | . 23 9 . 2 6 3 23 45 . . . . 7 . Largest 2 | . 2 2 . 2 2 1 2 2 . . . . 1 . Hottest 76 | . 76 76 . 60 60 30 63 69 . . . . . . Shots Fired 167 | . 46 11 . 4 9 3 36 51 . . . . 7 . Gun 39 | . 37 2 . . . . . . . . . . . . Cannon 18 | . 9 9 . . . . . . . . . . . . Launcher 103 | . . . . 4 9 3 36 51 . . . . . . Special 7 | . . . . . . . . . . . . . 7 . Kinetic 25 | . 23 2 . . . . . . . . . . . . Thermal . | . . . . . . . . . . . . . . . Explosive 73 | . . . . 4 9 3 26 31 . . . . . . Electromagnetic 62 | . 23 9 . . . . 10 20 . . . . . . Robot Hit Streak 40 | . 5 3 . . 6 8 11 40 . . . . 23 . Robot Miss Streak 2 | . 2 2 . 2 . . 1 1 . . . . . . Penetration Max . | . . . . . . . . . . . . . . . Secondary Targets . | . . . . . . . . . . . . . . . Shots Hit Robots 143 | . 26 6 . . 7 2 29 49 . 2 3 16 3 . Core Hits 127 | . 11 1 . 5 9 5 43 46 . 1 1 5 . . Critical Kills 2 | . 1 . . . 1 . . . . . . . . . Critical Parts Destroyed . | . . . . . . . . . . . . . . . Critical Strikes 5 | . 1 2 . . 1 . . . . . . 1 . . Destroy 1 | . 1 . . . . . . . . . . . . . Corrupt 2 | . . 2 . . . . . . . . . . . . Smash 1 | . . . . . 1 . . . . . . . . . Impale 1 | . . . . . . . . . . . . 1 . . Melee Attacks 36 | . . . . . 9 . . . . 3 6 18 . . Impact 9 | . . . . . 9 . . . . . . . . . Slashing . | . . . . . . . . . . . . . . . Piercing 27 | . . . . . . . . . . 3 6 18 . . Sneak Attacks 2 | . . . . . . . . . . 2 . . . . Combat Hostiles . | . . . . . . . . . . . . . . . Follow-up Attacks . | . . . . . . . . . . . . . . . Damage Inflicted 7638 | . 533 107 . 213 466 353 2158 2551 27 144 92 994 . . Guns 263 | . 253 10 . . . . . . . . . . . . Cannons 266 | . 169 97 . . . . . . . . . . . . Explosions 5788 | . 110 . . 213 425 353 2158 2529 . . . . . . Melee 1271 | . . . . . 41 . . . . 144 92 994 . . Ramming 50 | . 1 . . . . . . 22 27 . . . . . Kinetic 99 | . 89 10 . . . . . . . . . . . . Thermal 130 | . 110 . . . . . 20 . . . . . . . Explosive 4625 | . . . . 213 425 353 1680 1954 . . . . . . Electromagnetic 1463 | . 333 97 . . . . 458 575 . . . . . . Impact 41 | . . . . . 41 . . . . . . . . . Slashing . | . . . . . . . . . . . . . . . Piercing 1230 | . . . . . . . . . . 144 92 994 . . Highest Corruption 8 | . . . . . . . . 8 5 5 5 5 5 . Average Corruption 5 | . . . . . . . . 6 5 5 5 5 5 . Corruption Purged . | . . . . . . . . . . . . . . . Corruption Blocked . | . . . . . . . . . . . . . . . Effects 39 | . . . . . . . . 12 . 4 7 6 10 . Message Errors 10 | . . . . . . . . 2 . 2 2 1 3 . Matter Fused 13 | . . . . . . . . 4 . 1 4 2 2 . Heat Flow Errors 5 | . . . . . . . . 1 . . 1 2 1 . Energy Discharges 3 | . . . . . . . . 1 . . . . 2 . Data Loss (minor) 5 | . . . . . . . . 1 . 1 . 1 2 . Data Loss (major) 3 | . . . . . . . . 3 . . . . . . Overload Shots . | . . . . . . . . . . . . . . . Overflow Damage 449 | . . 15 . . 14 3 91 103 . 61 2 160 . . Projectiles 15 | . . 15 . . . . . . . . . . . . Explosions 211 | . . . . . 14 3 91 103 . . . . . . Melee 223 | . . . . . . . . . . 61 2 160 . . Knockbacks . | . . . . . . . . . . . . . . . Impact . | . . . . . . . . . . . . . . . Kinetic . | . . . . . . . . . . . . . . . Secondary . | . . . . . . . . . . . . . . . Self-Inflicted Damage 351 | . 24 . . . . 79 210 11 27 . . . . . Shots 12 | . 1 . . . . 3 8 . . . . . . . Rammed 3 | . 1 . . . . . . 2 . . . . . . Targets Rammed 3 | . 1 . . . . . . 2 . . . . . . Kicked . | . . . . . . . . . . . . . . . Crushed . | . . . . . . . . . . . . . . . Highest Temperature 247 | . 82 118 . 28 . . 19 105 . . 166 247 161 . Average Temperature 37 | . 26 52 . 15 . . 9 31 . . 97 106 99 . Received Heat Transfer 411 | . 36 27 . 45 . . 69 135 . . 54 . 45 . Siege Activations . | . . . . . . . . . . . . . . . Martial Activations . | . . . . . . . . . . . . . . . Shielding Activations . | . . . . . . . . . . . . . . . Robots Disrupted . | . . . . . . . . . . . . . . . Combat Hostiles . | . . . . . . . . . . . . . . . Robots Corrupted . | . . . . . . . . . . . . . . . Combat Hostiles . | . . . . . . . . . . . . . . . Parts Fried 3 | . 1 . . . . . 1 1 . . . . . . Impact Corruptions . | . . . . . . . . . . . . . . . Robots Melted . | . . . . . . . . . . . . . . . Combat Hostiles . | . . . . . . . . . . . . . . . Parts Melted . | . . . . . . . . . . . . . . . Heat Transferred 200 | . 150 . . . . . 50 . . . . . . . Parts Sabotaged . | . . . . . . . . . . . . . . . Parts Stolen . | . . . . . . . . . . . . . . . Parts Stripped . | . . . . . . . . . . . . . . . Power Chain Reactions 6 | . 3 . . . . . 1 2 . . . . . . Alert | -11 -10 -10 -10 -9 -8 -7 -6 -5 -4 -4 -4 -4 -3 -3 ------- Run | Yrd Mat Min Exi Min Mat Fac Fac Fac Fac Upp Upp Zhi Pro Res Maximum Alert Level 1 | . . . . . . . 1 . . . . . . . Low Security (%) 95 | 100 100 100 . 100 100 100 79 100 100 . . . . 100 Level 1 4 | . . . . . . . 20 . . . . . . . Level 2 . | . . . . . . . . . . . . . . . Level 3 . | . . . . . . . . . . . . . . . Level 4 . | . . . . . . . . . . . . . . . Level 5 . | . . . . . . . . . . . . . . . High Security . | . . . . . . . . . . . . . . . Max Security . | . . . . . . . . . . . . . . . Peak Influence 322 | . 50 15 . 92 127 126 322 197 76 . . . . . Initial 157 | . . 14 . . . 49 . 157 76 . . . . . Average 46 | . 14 1 . 24 9 32 63 113 67 . . . . . Influence Increases 1827 | . 188 45 . 92 266 129 542 473 15 . 42 15 20 . Destroy 0b10 Robot/C 640 | . 60 . . 60 60 80 180 140 . . 40 . 20 . Destroy 0b10 Robot/NC 150 | . 25 . . . 20 . 45 45 . . . 15 . . Destroy Leader 118 | . 16 . . 10 16 10 46 20 . . . . . . Allied During Kill 2 | . . . . . . . . . . . 2 . . . Successful Hack 144 | . 30 . . . 26 . 35 53 . . . . . . Select Force Hacks 30 | . 30 . . . . . . . . . . . . . Disable Machine 165 | . . . . . 30 30 60 30 15 . . . . . Destroy Structure 458 | . 12 . . 22 84 9 161 170 . . . . . . Partial Spotted 15 | . 15 . . . . . . . . . . . . . Lose Combat Pursuer 105 | . . 45 . . 30 . 15 15 . . . . . . Influence Decreases 1827 | . 151 82 . 92 157 238 220 639 110 61 42 15 20 . Entered New Map 352 | . . 23 . . . 60 . 165 80 24 . . . . Time Decay 1292 | . 151 39 . 92 141 175 210 374 20 37 30 15 8 . Lost Part 155 | . . 20 . . . 3 10 100 10 . . . 12 . Lost Ally 28 | . . . . . 16 . . . . . 12 . . . Squads Dispatched 13 | . 1 . . . 1 1 4 6 . . . . . . Investigation 2 | . 1 . . . 1 . . . . . . . . . Extermination 5 | . . . . . . 1 2 2 . . . . . . Reinforcement 6 | . . . . . . . 2 4 . . . . . . Assault . | . . . . . . . . . . . . . . . Garrison . | . . . . . . . . . . . . . . . Intercept . | . . . . . . . . . . . . . . . Searches Triggered . | . . . . . . . . . . . . . . . Construction Impeded 3 | . . . . . . . 1 2 . . . . . . Haulers Reinforced 1 | . . . . . . . . 1 . . . . . . Active Scanning Responses . | . . . . . . . . . . . . . . . Cargo Convoy Interrupts . | . . . . . . . . . . . . . . . Stealth | -11 -10 -10 -10 -9 -8 -7 -6 -5 -4 -4 -4 -4 -3 -3 --------- Run | Yrd Mat Min Exi Min Mat Fac Fac Fac Fac Upp Upp Zhi Pro Res Distress Signals 12 | . 1 . . . 1 . 1 . . . . . 9 . Communications Jammed . | . . . . . . . . . . . . . . . Distress Signals . | . . . . . . . . . . . . . . . Times Spotted 80 | . 6 15 . 3 11 5 15 15 . . 1 . 9 . Peak Tracking Total 8 | . 2 2 . 3 4 5 8 6 . . 1 . 6 . Tactical Retreats 8 | . . 4 . . 2 . 1 1 . . . . . . Traps | -11 -10 -10 -10 -9 -8 -7 -6 -5 -4 -4 -4 -4 -3 -3 ------- Run | Yrd Mat Min Exi Min Mat Fac Fac Fac Fac Upp Upp Zhi Pro Res Traps Triggered 1 | . . . . . 1 . . . . . . . . . Indirectly . | . . . . . . . . . . . . . . . Trap Hack Attempts . | . . . . . . . . . . . . . . . Triggered . | . . . . . . . . . . . . . . . Disarmed . | . . . . . . . . . . . . . . . Reprogrammed . | . . . . . . . . . . . . . . . Reused . | . . . . . . . . . . . . . . . Traps Extracted . | . . . . . . . . . . . . . . . Installed . | . . . . . . . . . . . . . . . Triggered . | . . . . . . . . . . . . . . . Machines | -11 -10 -10 -10 -9 -8 -7 -6 -5 -4 -4 -4 -4 -3 -3 ---------- Run | Yrd Mat Min Exi Min Mat Fac Fac Fac Fac Upp Upp Zhi Pro Res Machines Disabled 13 | . . . . . 2 2 4 2 1 1 . 1 . . Max in Single Turn 2 | . . . . . 2 1 2 1 1 1 . 1 . . Garrison Access 1 | . . . . . . . 1 . . . . . . . Machines Repaired . | . . . . . . . . . . . . . . . Machines Dismantled . | . . . . . . . . . . . . . . . Machines Sabotaged . | . . . . . . . . . . . . . . . Overloaded Fab Kills . | . . . . . . . . . . . . . . . Hacking | -11 -10 -10 -10 -9 -8 -7 -6 -5 -4 -4 -4 -4 -3 -3 --------- Run | Yrd Mat Min Exi Min Mat Fac Fac Fac Fac Upp Upp Zhi Pro Res Machines Accessed 33 | . 5 . 2 . 7 1 8 6 . . . 4 . . Terminals 18 | . 4 . . . 5 . 5 4 . . . . . . Fabricators 3 | . . . . . . 1 1 1 . . . . . . Repair Stations 1 | . . . . . 1 . . . . . . . . . Recycling Units 4 | . 1 . . . 1 . 1 1 . . . . . . Scanalyzers . | . . . . . . . . . . . . . . . Garrison Access 1 | . . . . . . . 1 . . . . . . . Total Hacks 101 | . 14 . 5 . 27 1 22 16 . . . 16 . . Successful 60 | . 10 . 5 . 14 . 8 7 . . . 16 . . Failed 41 | . 4 . . . 13 1 14 9 . . . . . . Catastrophic 6 | . . . . . 2 1 2 1 . . . . . . Database Lockouts . | . . . . . . . . . . . . . . . Manual 43 | . 14 . 1 . 15 1 6 5 . 1 . . . . Terminals 60 | . 13 . . . 22 . 12 13 . . . . . . Fabricators 5 | . . . . . . 1 2 2 . . . . . . Repair Stations 1 | . . . . . 1 . . . . . . . . . Recycling Units 12 | . 1 . . . 4 . 6 1 . . . . . . Scanalyzers . | . . . . . . . . . . . . . . . Garrison Access 2 | . . . . . . . 2 . . . . . . . Terminal Hacks 40 | . 6 . 5 . 7 . 3 3 . . . 16 . . Record 8 | . . . 4 . . . . . . . . 4 . . Part Schematic 4 | . . . . . . . . . . . . 4 . . Robot Analysis 8 | . 3 . . . . . 1 . . . . 4 . . Prototype ID Bank 6 | . 1 . . . 1 . . . . . . 4 . . Level Access Points 1 | . . . . . . . . 1 . . . . . . Branch Access Points 1 | . . . . . 1 . . . . . . . . . Emergency Access Points 1 | . . . . . 1 . . . . . . . . . Terminal Index 3 | . 1 . . . 1 . . 1 . . . . . . Locate Traps 2 | . . . . . 1 . 1 . . . . . . . Patrol Status 1 | . 1 . . . . . . . . . . . . . Zone Layout 4 | . . . . . 2 . 1 1 . . . . . . Proto ID Catalog 1 | . . . 1 . . . . . . . . . . . Fabricator Hacks 1 | . . . . . . . . 1 . . . . . . Network Status 1 | . . . . . . . . 1 . . . . . . Repair Station Hacks . | . . . . . . . . . . . . . . . Recycling Unit Hacks 6 | . . . . . 3 . 2 1 . . . . . . Process 3 | . . . . . 1 . 1 1 . . . . . . Report Inventory 2 | . . . . . 1 . 1 . . . . . . . Retrieve Matter 1 | . . . . . 1 . . . . . . . . . Scanalyzer . | . . . . . . . . . . . . . . . Garrison Access Hacks 1 | . . . . . . . 1 . . . . . . . Seal Access 1 | . . . . . . . 1 . . . . . . . Unauthorized Hacks 12 | . 4 . . . 4 . 2 2 . . . . . . Terminals 10 | . 3 . . . 4 . 2 1 . . . . . . Assimilate 3 | . . . . . 3 . . . . . . . . . Botnet 6 | . 2 . . . 1 . 2 1 . . . . . . Operators 1 | . 1 . . . . . . . . . . . . . Fabricators 1 | . . . . . . . . 1 . . . . . . Fabnet 1 | . . . . . . . . 1 . . . . . . Repair Stations . | . . . . . . . . . . . . . . . Recycling Units 1 | . 1 . . . . . . . . . . . . . Tunnel 1 | . 1 . . . . . . . . . . . . . Scanalyzers . | . . . . . . . . . . . . . . . Garrison Access . | . . . . . . . . . . . . . . . Data Cores Recovered . | . . . . . . . . . . . . . . . Used . | . . . . . . . . . . . . . . . Hacking Detections 23 | . 4 . . . 7 1 7 4 . . . . . . Full Trace Events . | . . . . . . . . . . . . . . . Feedback Events . | . . . . . . . . . . . . . . . Feedback Blocked . | . . . . . . . . . . . . . . . Robot Schematics Acquired . | . . . . . . . . . . . . . . . Robots Built . | . . . . . . . . . . . . . . . Authchips . | . . . . . . . . . . . . . . . Time . | . . . . . . . . . . . . . . . Total Robot Build Rating . | . . . . . . . . . . . . . . . Part Schematics Acquired 4 | . . . . . . . . . . . . 4 . . Parts Built . | . . . . . . . . . . . . . . . Authchips . | . . . . . . . . . . . . . . . Time . | . . . . . . . . . . . . . . . Total Part Build Rating . | . . . . . . . . . . . . . . . Part Studies Acquired . | . . . . . . . . . . . . . . . Parts Repaired . | . . . . . . . . . . . . . . . Time . | . . . . . . . . . . . . . . . Parts Recycled . | . . . . . . . . . . . . . . . Recycled Matter 120 | . . . . . 114 . 6 . . . . . . . Retrieved Matter 114 | . . . . . 114 . . . . . . . . . Retrieved Components . | . . . . . . . . . . . . . . . Parts Scanalyzed . | . . . . . . . . . . . . . . . Part Schematics Acquired . | . . . . . . . . . . . . . . . Parts Damaged . | . . . . . . . . . . . . . . . Bothacking | -11 -10 -10 -10 -9 -8 -7 -6 -5 -4 -4 -4 -4 -3 -3 ------------ Run | Yrd Mat Min Exi Min Mat Fac Fac Fac Fac Upp Upp Zhi Pro Res Used RIF Installer . | . . . . . . . . . . . . . . . Robots Hacked 1 | . . . . . . . . . . . 1 . . . Non-combat . | . . . . . . . . . . . . . . . Combat 1 | . . . . . . . . . . . 1 . . . Robot Hacks Applied . | . . . . . . . . . . . . . . . Relay Couplers Released . | . . . . . . . . . . . . . . . Fabnet Peak Effective % 3 | . . . . . . . . . 3 3 3 3 1 1 Autooverrided 1 | . . . . . . . . . . . 1 . . . Robots Rewired . | . . . . . . . . . . . . . . . Allies Hacked . | . . . . . . . . . . . . . . . Hacks Repelled . | . . . . . . . . . . . . . . . Allies | -11 -10 -10 -10 -9 -8 -7 -6 -5 -4 -4 -4 -4 -3 -3 -------- Run | Yrd Mat Min Exi Min Mat Fac Fac Fac Fac Upp Upp Zhi Pro Res Total Allies 3 | . . . . . 2 . . . . . 1 . . . Largest Group 1 | . . . . . 1 . . . . . 1 . . . Highest-Rated Group 49 | . . . . . 10 . . . . . 49 . . . Highest-Rated Ally 49 | . . . . . 10 . . . . . 49 . . . Total Orders . | . . . . . . . . . . . . . . . Ally Attacks 4 | . . . . . . . . . . . 4 . . . Total Damage 166 | . . . . . . . . . . . 166 . . . Kills 1 | . . . . . . . . . . . 1 . . . Allies Corrupted . | . . . . . . . . . . . . . . . Allies Melted . | . . . . . . . . . . . . . . . Intel | -11 -10 -10 -10 -9 -8 -7 -6 -5 -4 -4 -4 -4 -3 -3 ------- Run | Yrd Mat Min Exi Min Mat Fac Fac Fac Fac Upp Upp Zhi Pro Res Active Infowar (turns) 4663 | . 433 109 . . 676 554 877 567 41 314 216 390 486 . Sensors 1406 | . . . . . . . . . . 314 216 390 486 . Structural 4454 | . 433 109 . . 676 554 877 567 41 105 216 390 486 . Traps 563 | . . . . . . 190 373 . . . . . . . Machine Analysis 1345 | . . . . . . . . . . 253 216 390 486 . Robot Analysis Total 8 | . 3 . . . . . 1 . . . . 4 . . Derelict Logs Recovered 2 | . . 1 . 1 . . . . . . . . . . Drone Launches . | . . . . . . . . . . . . . . . Drone Recoveries . | . . . . . . . . . . . . . . . Exploration | -11 -10 -10 -10 -9 -8 -7 -6 -5 -4 -4 -4 -4 -3 -3 ------------- Run | Yrd Mat Min Exi Min Mat Fac Fac Fac Fac Upp Upp Zhi Pro Res Turns Passed 6223 | 40 438 443 358 348 771 554 877 917 57 314 216 390 493 7 Spaces Moved 6277 | 36 368 308 461 399 578 372 1129 903 82 460 338 391 440 12 Core 43 | 2 . 15 . . . . . . . . . . 14 12 Treads . | . . . . . . . . . . . . . . . Legs . | . . . . . . . . . . . . . . . Wheels 597 | 34 368 195 . . . . . . . . . . . . Hover 5637 | . . 98 461 399 578 372 1129 903 82 460 338 391 426 . Flight . | . . . . . . . . . . . . . . . Fastest Speed 40 | 50 90 77 77 77 77 66 59 53 66 53 53 40 50 50 Average Speed 74 | 87 90 98 77 77 104 66 61 63 66 58 53 78 99 50 Slowest Speed 250 | 90 90 250 77 77 147 66 66 66 66 66 53 150 101 50 Overloaded Moves . | . . . . . . . . . . . . . . . Propulsion Burnouts . | . . . . . . . . . . . . . . . Robots Hopped . | . . . . . . . . . . . . . . . Potential Cave-ins . | . . . . . . . . . . . . . . . Cave-ins Triggered . | . . . . . . . . . . . . . . . Teleports 1 | . . . . . . . . . . . . . 1 . Exploration Rate (%) 48 | 4 57 60 90 79 43 15 34 17 3 82 41 98 58 . Regions Visited 14 Branch Regions 7 Pre-discovered Areas 7 | . 1 1 1 1 . . . . . . . 3 . . Known Exits Taken 6 | . . . . . . . . 1 1 1 1 1 1 . Unknown Exits Taken 8 | 1 1 1 1 1 1 1 1 . . . . . . . Scrap Searched 7 | . . 1 . 2 . . . . . 2 2 . . . Spaces Dug 7 | . . . . . 7 . . . . . . . . . Terrain Destroyed 412 | . 8 . . 33 100 11 180 80 . . . . . . Melee 7 | . . . . . 7 . . . . . . . . . Projectile . | . . . . . . . . . . . . . . . AOE 405 | . 8 . . 33 93 11 180 80 . . . . . . Terrain Rammed 1 | . . . . . . . . . 1 . . . . . Walls Destroyed . | . . . . . . . . . . . . . . . Machines Disabled 1 | . . . . . . . . . 1 . . . . . Actions | -11 -10 -10 -10 -9 -8 -7 -6 -5 -4 -4 -4 -4 -3 -3 --------- Run | Yrd Mat Min Exi Min Mat Fac Fac Fac Fac Upp Upp Zhi Pro Res Total 7591 | 41 429 434 464 435 720 677 1277 1219 84 496 368 453 482 12 Wait 970 | . 22 89 . 33 102 289 103 244 . 19 17 21 31 . Move 6263 | 35 367 307 460 398 577 371 1128 902 81 459 337 390 439 12 Hop . | . . . . . . . . . . . . . . . Pick Up 53 | . 11 8 1 2 9 4 5 4 1 3 3 2 . . Fast Attach 40 | 6 1 7 . . . 1 5 3 1 7 2 7 . . Attach 28 | . . 5 . . 5 2 3 5 . 3 1 1 3 . Detach 12 | . . 1 . . 1 1 1 4 . 1 . 1 2 . Swap 22 | . 1 2 1 . 4 3 2 4 . . . 5 . . Drop 45 | . 3 6 2 . 7 3 7 6 . 1 2 8 . . Fire 118 | . 23 9 . 2 6 3 23 45 . . . . 7 . Melee 36 | . . . . . 9 . . . . 3 6 18 . . Ram 4 | . 1 . . . . . . 2 1 . . . . . Kick . | . . . . . . . . . . . . . . . Crush . | . . . . . . . . . . . . . . . Escape Stasis . | . . . . . . . . . . . . . . . Rewire . | . . . . . . . . . . . . . . . Trap . | . . . . . . . . . . . . . . . Miscellaneous . | . . . . . . . . . . . . . . . Route ------- -11/Scrapyard -10/Materials (discovered 3 exits: [*Mat x2] / [*Min]) -10/Mines -10/Exiles -9/Mines -8/Materials -7/Factory -6/Factory -5/Factory (discovered 4 exits: *Fac x4) -4/Factory (discovered 2 exits: *Res / *Upp) -4/Upper Caves -4/Upper Caves -4/Zhirov -3/Proximity Caves -3/Research History --------- Turn | Location | Event 12 | -11/Scrapyard | Discovered new exit (range 16) 41 | -11/Scrapyard | Entered Materials 237 | -10/Materials | Discovered new exit (range 16) 303 | -10/Materials | Build established: Mutant 355 | -10/Materials | Discovered new exit (range 14) 430 | -10/Materials | Discovered new exit (range 8) 479 | -10/Materials | Entered Mines 497 | -10/Mines | YI-UF0 nonchalantly dropped a Grenade Launcher on the ground 601 | -10/Mines | Core integrity fell below 50% 601 | -10/Mines | Destroyed YI-UF0 631 | -10/Mines | Lost 6 parts (2n1u3w) 684 | -10/Mines | Assembled infested the area 734 | -10/Mines | Met 8R-AWN 776 | -10/Mines | Lost 4 parts (1p1u2w) 905 | -10/Mines | Learned location of Zion (-7) 919 | -10/Mines | Discovered new exit (range 5) 922 | -10/Mines | Entered Exiles 941 | -10/Exiles | Welcomed by 8R-AWN 955 | -10/Exiles | Met EX-HEX 976 | -10/Exiles | Met EX-BIN 985 | -10/Exiles | Aligned with FarCom system 986 | -10/Exiles | Given EX-Vault access code 1003 | -10/Exiles | Opened EX-Vault 1008 | -10/Exiles | Found Superbattery 1026 | -10/Exiles | Warned to stay clear of 0b10 Research branches 1046 | -10/Exiles | Met EX-DEC 1047 | -10/Exiles | Build established: Scavenger-Mutant 1158 | -10/Exiles | Visited The Gauntlet 1274 | -10/Exiles | Discovered new exit (range 10) 1280 | -10/Exiles | Left Exiles lab with Superbattery 1280 | -10/Exiles | Entered Mines 1309 | -9/Mines | Met a Derelict bent on vengeance 1489 | -9/Mines | Found a damaged Exp. Sensor Array with a note attached 1622 | -9/Mines | Discovered new exit (range 8) 1628 | -9/Mines | Entered Materials 1628 | -8/Materials | Evolved 4 slots: Utility x4 2396 | -8/Materials | Discovered new exit (range 4) 2399 | -8/Materials | Entered Factory 2399 | -7/Factory | Evolved 2 slots: Propulsion x1, Utility x1 2672 | -7/Factory | Discovered new exit (range 12) 2953 | -7/Factory | Entered another Factory area 2953 | -6/Factory | Evolved 2 slots: Propulsion x1, Utility x1 3403 | -6/Factory | Spotted B-75 Beast 3515 | -6/Factory | Found Launcher Loader 3550 | -6/Factory | Build established: Scavenger-Scout 3779 | -6/Factory | Discovered new exit (range 6) 3830 | -6/Factory | Entered another Factory area 3830 | -5/Factory | Evolved 2 slots: Propulsion x1, Utility x1 3942 | -5/Factory | Build established: Scavenger-Mutant 3998 | -5/Factory | Identified exit to Factory 4604 | -5/Factory | Lost 7 parts (1p1n2u3w) 4747 | -5/Factory | Entered another Factory area 4747 | -4/Factory | Evolved 2 slots: Utility x2 4760 | -4/Factory | Discovered new exit (range 6) 4769 | -4/Factory | Discovered new exit (range 7) 4797 | -4/Factory | Identified exit to Research 4804 | -4/Factory | Identified exit to Upper Caves 4804 | -4/Factory | Entered Upper Caves 4884 | -4/Upper Caves | Entered a destroyed Warlord outpost 4956 | -4/Upper Caves | Acquired the password to a Derelict Tinkerer's latest research 4962 | -4/Upper Caves | Found Prototype Special Weapon 4962 | -4/Upper Caves | Identified Molecular Deconstructor 5095 | -4/Upper Caves | Discovered new exit (range 6) 5098 | -4/Upper Caves | Identified exit to Upper Caves 5118 | -4/Upper Caves | Entered another Upper Caves area 5165 | -4/Upper Caves | Build established: Hacker-Scout 5305 | -4/Upper Caves | Discovered new exit (range 11) 5310 | -4/Upper Caves | Identified exit to Zhirov 5334 | -4/Upper Caves | Entered Zhirov 5334 | -4/Zhirov | Discovered new exit (range 3) 5354 | -4/Zhirov | Learned location of Testing (-2) 5354 | -4/Zhirov | Learned location of Command (-1) 5368 | -4/Zhirov | Found Alien Artifact 5368 | -4/Zhirov | Identified Integrated Dissipator 5368 | -4/Zhirov | Installed Integrated Dissipator, increased core heat dissipation (+20) 5444 | -4/Zhirov | Found Alien Artifact 5454 | -4/Zhirov | Cloak Generator disabled 5464 | -4/Zhirov | Enhanced Grunts warped into view 5515 | -4/Zhirov | Lost 5 parts (3n2w) 5515 | -4/Zhirov | Lost 7 allies 5721 | -4/Zhirov | Identified exit to Proximity Caves 5724 | -4/Zhirov | Entered Proximity Caves 5795 | -3/Proximity Caves | Build established: Hacker-Mutant 5926 | -3/Proximity Caves | Spotted B-86 Titan 6054 | -3/Proximity Caves | Attracted the attention of an 0b10 checkpoint 6208 | -3/Proximity Caves | Identified Transdimensional Reconstructor 6208 | -3/Proximity Caves | Warped through subspace 6209 | -3/Proximity Caves | Core integrity fell below 50% 6210 | -3/Proximity Caves | Released all parts (11) 6211 | -3/Proximity Caves | Discovered exit to Research (range 15) 6217 | -3/Proximity Caves | Entered Research 6217 | -3/Research | Evolved 2 slots: Power x1, Utility x1 6224 | -3/Research | Self-destructed Last Messages --------------- 06210_ Released Adv. Sensor Array. 06210_ Released Structural Scanner. 06210_ Released Med. Storage Unit. 06210_ Released Launcher Guidance Computer. 06210_ Released Adv. Signal Interpreter. 06210_ Released Hacking Suite. 06211_ EXIT=FOUND: RESEARCH 06211_ Data Receptor disabled. 06217_ Penetrated by Slug. 06217_ Slug penetrates Reinforced Barrier. PARAMETERS=POWER+1,UTILITY+1 LOCATION=RESEARCH GOAL=ESCAPE 06217_ Receiving FarCom transmissions... 06222_ FARCOM_MSG: Anonymous tester bot, EX-BIN here, just a quick reminder that unless you're really into science and its potentially deadly consequences, consider trying your best to avoid entering Testing or Quarantine. 06224_ Connecting with Terminal... Map ----- +----------------------------------------------------+ | ?????????????????????????????????????????????????? | | ?????????????????????????????????????????????????? | | ?????????????????????????????????????????????????? | | ?????????????????????????????????????????????????? | | ?????????????????????????????????????????????????? | | ?????????????????????????????????????????????????? | | ?????????????????????????????????????????????????? | | ?????????????????????????????????????????????????? | | ?????????????????????????????????????????????????? | | ?????????????????????????????????????????????????? | | ?????????????????????????????????????????????????? | | ????????????????+????????????????????????????????? | | ????????????????# ??????????????????????????????? | | ????????????????# ?????????????????????????????? | | ??????????????### ###############?????????????? | | ?????????????? #?????????????? | | ????????????? #?????????????? | | ????????????? #???o?????????? | | ????????????? +?????????????? | | ????????????????????#######+### #?????????????? | | ????????????????????# # #?????????????? | | ????????????????????# # #?????????????? | | ????????????????????# ######?????????????? | | ????????????????????# = #??????????????????? | | ????????????????????# #??????????????????? | | ????????????????????# @ #??????????????????? | | ????????????????????# ""T"" #??????????????????? | | ????????????????????# """"" #??????????????????? | | ????????????????????###########??????????????????? | | ?????????????????????????????????????????????????? | | ?????????????????????????????????????????????????? | | ?????????????????????????????????????????????????? | | | | | | | | | | | | | | | | | | | | | | | | | | | | | | | | | | | | | +----------------------------------------------------+ Best States ------------- Heat Dissipation 82 Energy Generation 23 Energy Capacity 1650 Matter Stores 430 Matter Capacity 600 Sight Range 16 Robot Scan Range 16 Terrain Scan Density 10 Armor Coverage 375 Resistance: EX 25 Power Shielding 90 Propulsion Shielding 66 Evasion (%) 57 Targeting Accuracy 6 Launcher Accuracy 40 Offensive Hacking 20 Defensive Hacking 24 Item Schematics ----------------- Assault Drone Bay | -4/Zhirov | Free Exp. Heat Sink | -4/Zhirov | Free Exp. Optical Array | -4/Zhirov | Free Imp. Arc Thrower | -4/Zhirov | Free Robot Schematics ------------------ None Fabricated ------------ Nothing Repaired ---------- Nothing Studied --------- None Alien Tech Used ----------------- Integrated Dissipator Transdimensional Reconstructor Achievements -------------- None Challenges ------------ None Game ------ Seed BehemothAssaultInterpreter Manual? 0 Play Time 01:31:44 Cumulative 166.1 hours Start 2026.07.09 @ 22:15:20 End 2026.07.10 @ 11:32:08 Sessions 2 Manual Loads 0 Difficulty Rogue Special Mode None Game No. 92 Rogue 92 Adventurer 0 Explorer 0 Win Type - Total 4 Types 4/0/0/0/0/0/0/0/0/0 Lore% 68 Gallery% 61 Achievement% 52 Wizard Run 0 Options --------- Layout 1 ASCII 0 Keyboard 0 Movement Numpad Keybinds 0 Fullscreen 1 Font 24/Smallcaps Map View 50x35 Zoom Use 0% Tactical HUD 1 Map Filters NONE Filters NONE Steam 1 RUN: 2b65497f-498d-4ed4-8546-778ab6cde75f